Cogmind - Beta 13 @@@ ROGUE MODE // 2024.04.24 @ 15:25:35 Player: szymekc Result: Destroyed by 3Y-E4Z(R) with Subdweller Laser Performance ------------- Evolutions (0) 0 Regions Visited (3) 600 Robots Destroyed (32) 160 Value Destroyed (795) 795 Prototype IDs (2) 40 Alien Tech Used (0) 0 Bonus (0) 0 TOTAL SCORE: 1595 Bonus ------- None Cogmind --------- Core Integrity 0/250 Matter 259/300 Energy 18/100 System Corruption 0% Temperature Cool (6) Movement Treading (560) Ox4 Location -10/Subcaves Parts ------- > --- POWER (1) -------- (None) > --- PROPULSION (2) --- Spiked Treads Subdweller Monowheel > --- UTILITY (2) ------ Huge Storage Unit > --- WEAPON (2) ------- Makeshift Laser Subdweller Machine Gun > --- INVENTORY (25) --- Wheel Improved Flight Unit Improved Flight Unit Improved Flight Unit Improved Flight Unit Large Storage Unit High-capacity Matter Pod (200) Structural Scanner Experimental Sensor Array EM Pulse Gun Subdweller Machine Gun Subdweller Machine Gun Plasma Cutter Makeshift Hammer Makeshift Hammer Explosive Trap Explosive Trap Explosive Trap Explosive Trap Explosive Trap Scrap Shield Fragment (48) Scrap Shield Fragment (46) Scrap Shield Fragment (45) Scrap Shield Fragment (45) Peak State ------------ > --- POWER ------------ Subdweller Power Source > --- PROPULSION ------- Spiked Treads Subdweller Monowheel > --- UTILITY ---------- Improved Heat Sink Huge Storage Unit > --- WEAPON ----------- Improved Medium Laser Makeshift Hammer > --- INVENTORY -------- Light Ion Engine Light Treads Wheel Improved Flight Unit Improved Flight Unit Improved Flight Unit Improved Flight Unit Large Storage Unit High-capacity Matter Pod Structural Scanner Experimental Sensor Array EM Pulse Gun Subdweller Machine Gun Plasma Cutter Explosive Trap Explosive Trap Explosive Trap Explosive Trap Explosive Trap Scrap Shield Fragment Scrap Shield Fragment Scrap Shield Fragment Scrap Shield Fragment [Rating: 21] Favorites ----------- Power Ion Engine Engine Ion Engine Propulsion Light Treads Treads Light Treads Leg Aluminum Leg Wheel Subdweller Monowheel Flight Unit Improved Flight Unit Utility Improved Heat Sink Device Improved Heat Sink Storage Huge Storage Unit Protection Utility Shielding Weapon EM Pulse Gun Energy Gun EM Pulse Gun Ballistic Gun Subdweller Machine Gun Launcher Grenade Launcher Special Weapon Plasma Flamer Impact Weapon Makeshift Hammer Build | -11 -10 -10 -10 ------- Run | Yrd Mat Min Sub Slots Evolved . | . . . . Power . | . . . . Propulsion . | . . . . Utility . | . . . . Weapon . | . . . . Parts Attached 47 | 2 14 1 30 Power 2 | . . . 2 Engine 2 | . . . 2 Core . | . . . . Reactor . | . . . . Propulsion 15 | 2 3 . 10 Treads 9 | 2 2 . 5 Leg . | . . . . Wheel 5 | . . . 5 Hover . | . . . . Flight 1 | . 1 . . Utility 7 | . 4 1 2 Device 3 | . 1 . 2 Storage 3 | . 2 1 . Processor . | . . . . Hackware . | . . . . Protection 1 | . 1 . . Artifact . | . . . . Weapon 23 | . 7 . 16 Energy Gun 9 | . 5 . 4 Energy Cannon . | . . . . Ballistic Gun 4 | . . . 4 Ballistic Cannon . | . . . . Launcher 5 | . 2 . 3 Special Weapon 2 | . . . 2 Impact Weapon 3 | . . . 3 Slashing Weapon . | . . . . Piercing Weapon . | . . . . Special Melee Weapon . | . . . . Unidentified Prototypes 2 | . 2 . . Parts Lost 11 | . . . 11 Power 2 | . . . 2 Propulsion 2 | . . . 2 Utility 1 | . . . 1 Weapon 6 | . . . 6 Highest Loss Streak 4 | . . . 4 To Critical Strikes . | . . . . Average Slot Usage (%) 95 | . 99 100 90 Engine 10 | . 14 14 6 Treads 22 | . 27 28 16 Wheel 5 | . . . 11 Device 11 | . 5 14 14 Storage 14 | . 14 14 14 Protection 2 | . 7 . . Energy Gun 21 | . 25 28 14 Ballistic Gun 2 | . 1 . 4 Impact Weapon 2 | . . . 5 Naked Turns . | . . . . Heaviest Build 93 | 13 92 90 93 Greatest Support 40 | 40 40 40 40 Greatest Overweight (x) 9 | . 2 2 9 Average Overweight (x) 2 | . . . 4 Largest Inventory Capacity 25 | 8 25 25 25 Average Capacity 21 | 8 18 19 25 Most Carried 25 | 6 15 20 25 Average Carried 18 | 6 12 17 22 Final Capacity 25 | 8 15 25 25 Final Carried 24 | 6 15 20 24 Class Distribution -------------------- 98% | Mutant Dominant Class ---------------- Mutant | -10/Materials Mutant | -10/Mines Mutant | -10/Subcaves Resources | -11 -10 -10 -10 ----------- Run | Yrd Mat Min Sub Matter Collected 957 | 184 402 44 327 Remotely . | . . . . Salvage Created 1004 | . 554 97 353 Parts 68 | . 39 3 26 Haulers Intercepted 2 | . 2 . . Recyclers Shooed 1 | . 1 . . Parts Field Recycled . | . . . . Retrieved Matter . | . . . . Parts Self-Destructed 10 | . . . 10 Prevented . | . . . . Kills | -11 -10 -10 -10 ------- Run | Yrd Mat Min Sub Combat Hostiles Destroyed 24 | . 9 2 13 Guns 18 | . 5 2 11 AOE 6 | . 4 . 2 Classes Destroyed 9 | . 7 . 2 Worker 2 | . 2 . . Builder 1 | . 1 . . Hauler 2 | . 2 . . Recycler 2 | . 2 . . Watcher 1 | . 1 . . Swarmer 7 | . 3 . 4 Grunt 8 | . 6 2 . Sentry 1 | . . . 1 Subdweller 8 | . . . 8 Best Kill Streak 5 | . 5 1 4 Combat Bots Only 4 | . 3 1 4 Max Kills in Single Turn 4 | . 4 1 1 Gunslinging . | . . . . Exploded 1 | . 1 . 1 Melee . | . . . . Uniques/NPCs Destroyed . | . . . . Combat | -11 -10 -10 -10 -------- Run | Yrd Mat Min Sub Hostile Shots Fired 158 | . 38 1 119 Missed 50 | . 9 1 40 Damage Taken 1578 | . 273 . 1305 Core 252 | . 37 . 215 Absorbed by Shields . | . . . . Redirected to Shielding 3 | . 3 . . Core Remaining (%) 100 | 100 . . . Volleys Fired 91 | . 26 4 61 Largest 2 | . 2 2 2 Hottest 180 | . 96 80 180 Shots Fired 149 | . 43 8 98 Gun 129 | . 37 8 84 Cannon . | . . . . Launcher 13 | . 6 . 7 Special 7 | . . . 7 Kinetic 24 | . . . 24 Thermal 59 | . 17 . 42 Explosive 13 | . 6 . 7 Electromagnetic 53 | . 20 8 25 Robot Hit Streak 15 | . 11 15 13 Robot Miss Streak 6 | . 6 1 3 Penetration Max . | . . . . Secondary Targets 3 | . 1 . 2 Max Gunslinging Chain 1 | . 1 . 1 Shots Hit Robots 98 | . 22 6 70 Core Hits 50 | . 24 4 22 Critical Kills . | . . . . Critical Parts Destroyed . | . . . . Critical Strikes 5 | . 1 . 4 Burn 4 | . 1 . 3 Corrupt 1 | . . . 1 Melee Attacks 13 | . . . 13 Impact 13 | . . . 13 Slashing . | . . . . Piercing . | . . . . Sneak Attacks . | . . . . Combat Hostiles . | . . . . Follow-up Attacks . | . . . . Damage Inflicted 2490 | . 922 146 1422 Guns 1347 | . 355 88 904 Cannons . | . . . . Explosions 1058 | . 567 40 451 Melee . | . . . . Ramming 18 | . . 18 . Kinetic 328 | . . . 328 Thermal 883 | . 363 40 480 Explosive 813 | . 362 . 451 Electromagnetic 448 | . 197 88 163 Impact . | . . . . Slashing . | . . . . Piercing . | . . . . Highest Corruption . | . . . . Average Corruption . | . . . . Corruption Purged . | . . . . Corruption Blocked . | . . . . Overload Shots 2 | . . . 2 Effects 1 | . . . 1 Heat Surge 1 | . . . 1 Overflow Damage 15 | . 15 . . Projectiles . | . . . . Explosions 15 | . 15 . . Melee . | . . . . Knockbacks . | . . . . Impact . | . . . . Kinetic . | . . . . Secondary . | . . . . Self-Inflicted Damage 7 | . . . 7 Shots 1 | . . . 1 Rammed 4 | . . 4 . Targets Rammed 4 | . . 4 . Kicked . | . . . . Crushed . | . . . . Highest Temperature 246 | . 246 . 204 Average Temperature 73 | . 82 . 48 Received Heat Transfer 297 | . 78 . 219 Siege Activations . | . . . . Robots Corrupted . | . . . . Combat Hostiles . | . . . . Parts Fried 2 | . 1 . 1 Impact Corruptions . | . . . . Robots Melted . | . . . . Combat Hostiles . | . . . . Parts Melted 2 | . . . 2 Heat Transferred 2265 | . 557 50 1658 Parts Sabotaged . | . . . . Parts Stolen . | . . . . Parts Stripped . | . . . . Power Chain Reactions 2 | . 1 1 . Alert | -11 -10 -10 -10 ------- Run | Yrd Mat Min Sub Peak Influence 276 | . 276 108 . Initial 78 | . . 78 . Average 69 | . 99 35 . Maximum Alert Level 1 | . 1 . . Low Security (%) 90 | 100 82 100 . Level 1 9 | . 17 . . Level 2 . | . . . . Level 3 . | . . . . Level 4 . | . . . . Level 5 . | . . . . High Security . | . . . . Max Security . | . . . . Squads Dispatched 1 | . 1 . . Investigation 1 | . 1 . . Extermination . | . . . . Reinforcement . | . . . . Assault . | . . . . Garrison . | . . . . Intercept . | . . . . Searches Triggered . | . . . . Construction Impeded . | . . . . Haulers Reinforced . | . . . . Active Scanning Responses . | . . . . Cargo Convoy Interrupts . | . . . . Stealth | -11 -10 -10 -10 --------- Run | Yrd Mat Min Sub Distress Signals 1 | . 1 . . Communications Jammed . | . . . . Distress Signals . | . . . . Times Spotted 30 | . 14 1 15 Peak Tracking Total 5 | . 5 1 4 Tactical Retreats 2 | . . . 2 Traps | -11 -10 -10 -10 ------- Run | Yrd Mat Min Sub Traps Triggered . | . . . . Indirectly . | . . . . Trap Hack Attempts . | . . . . Triggered . | . . . . Disarmed . | . . . . Reprogrammed . | . . . . Reused . | . . . . Traps Extracted . | . . . . Installed . | . . . . Triggered . | . . . . Most Traps Carried 5 | . . 5 5 Machines | -11 -10 -10 -10 ---------- Run | Yrd Mat Min Sub Machines Disabled 1 | . 1 . . Max in Single Turn 1 | . 1 . . Machines Repaired . | . . . . Machines Dismantled . | . . . . Machines Sabotaged . | . . . . Overloaded Fab Kills . | . . . . Hacking | -11 -10 -10 -10 --------- Run | Yrd Mat Min Sub Machines Accessed 5 | . 5 . . Terminals 4 | . 4 . . Fabricators . | . . . . Repair Stations . | . . . . Recycling Units 1 | . 1 . . Scanalyzers . | . . . . Garrison Access . | . . . . Total Hacks 11 | . 11 . . Successful 5 | . 5 . . Failed 6 | . 6 . . Catastrophic 3 | . 3 . . Database Lockouts . | . . . . Manual 8 | . 8 . . Terminals 8 | . 8 . . Fabricators . | . . . . Repair Stations . | . . . . Recycling Units 3 | . 3 . . Scanalyzers . | . . . . Garrison Access . | . . . . Terminal Hacks 4 | . 4 . . Robot Analysis 2 | . 2 . . Emergency Access Points 1 | . 1 . . Zone Layout 1 | . 1 . . Fabricator Hacks . | . . . . Repair Station Hacks . | . . . . Recycling Unit Hacks 1 | . 1 . . Retrieve Components 1 | . 1 . . Scanalyzer . | . . . . Garrison Access Hacks . | . . . . Unauthorized Hacks . | . . . . Terminals . | . . . . Fabricators . | . . . . Repair Stations . | . . . . Recycling Units . | . . . . Scanalyzers . | . . . . Garrison Access . | . . . . Data Cores Recovered . | . . . . Used . | . . . . Hacking Detections 5 | . 5 . . Full Trace Events 1 | . 1 . . Feedback Events . | . . . . Feedback Blocked . | . . . . Robot Schematics Acquired . | . . . . Robots Built . | . . . . Authchips . | . . . . Time . | . . . . Total Robot Build Rating . | . . . . Part Schematics Acquired . | . . . . Parts Built . | . . . . Authchips . | . . . . Time . | . . . . Total Part Build Rating . | . . . . Parts Repaired . | . . . . Time . | . . . . Parts Recycled . | . . . . Recycled Matter . | . . . . Retrieved Matter . | . . . . Retrieved Components 9 | . 9 . . Parts Scanalyzed . | . . . . Part Schematics Acquired . | . . . . Parts Damaged . | . . . . Bothacking | -11 -10 -10 -10 ------------ Run | Yrd Mat Min Sub Used RIF Installer . | . . . . Robots Hacked . | . . . . Non-combat . | . . . . Combat . | . . . . Robot Hacks Applied . | . . . . Relay Couplers Released . | . . . . Fabnet Peak Effective % . | . . . . Robots Rewired . | . . . . Allies Hacked . | . . . . Hacks Repelled . | . . . . Allies | -11 -10 -10 -10 -------- Run | Yrd Mat Min Sub Total Allies 1 | . . 1 . Largest Group 1 | . . 1 . Highest-Rated Group 31 | . . 31 . Highest-Rated Ally 31 | . . 31 . Total Orders . | . . . . Ally Attacks . | . . . . Total Damage . | . . . . Kills . | . . . . Allies Corrupted . | . . . . Allies Melted . | . . . . Intel | -11 -10 -10 -10 ------- Run | Yrd Mat Min Sub Robot Analysis Total 2 | . 2 . . Derelict Logs Recovered 4 | . . 1 3 Drone Launches . | . . . . Drone Recoveries . | . . . . Exploration | -11 -10 -10 -10 ------------- Run | Yrd Mat Min Sub Turns Passed 4017 | 3 1189 1020 1805 Spaces Moved 1853 | 1 513 462 877 Core . | . . . . Treads 1039 | 1 513 462 63 Legs . | . . . . Wheels 814 | . . . 814 Hover . | . . . . Flight . | . . . . Fastest Speed 150 | 160 160 160 150 Average Speed 192 | 160 208 210 173 Slowest Speed 320 | 160 320 320 320 Overloaded Moves . | . . . . Propulsion Burnouts . | . . . . Robots Hopped . | . . . . Cave-ins Triggered . | . . . . Exploration Rate (%) 61 | 2 89 97 58 Regions Visited 3 Branch Regions 2 Pre-discovered Areas 2 | . . . 2 Known Exits Taken . | . . . . Unknown Exits Taken 3 | 1 1 1 . Scrap Searched 4 | . . 2 2 Spaces Dug 11 | . 11 . . Terrain Destroyed 87 | . 31 4 52 Melee . | . . . . Projectile 1 | . . . 1 AOE 86 | . 31 4 51 Terrain Rammed . | . . . . Walls Destroyed . | . . . . Machines Disabled . | . . . . Actions | -11 -10 -10 -10 --------- Run | Yrd Mat Min Sub Total 2129 | 2 591 499 1037 Wait 64 | . 12 20 32 Move 1850 | . 512 461 877 Hop . | . . . . Pick Up 39 | . 14 7 18 Fast Attach 6 | . 6 . . Attach 11 | . 1 . 10 Detach 1 | . 1 . . Swap 30 | 2 7 1 20 Drop 20 | . 12 2 6 Fire 91 | . 26 4 61 Melee 13 | . . . 13 Ram . | . . . . Kick . | . . . . Crush 4 | . . 4 . Escape Stasis . | . . . . Rewire . | . . . . Trap . | . . . . Miscellaneous . | . . . . Route ------- -11/Scrapyard -10/Materials (discovered 4 exits: [*Mat x2] / [*Min x2]) -10/Mines (discovered 3 exits: [*Mat x2] / [*Sub]) -10/Subcaves History --------- Turn | Location | Event 4 | -11/Scrapyard | Discovered new exit (range 0) 4 | -11/Scrapyard | Entered Materials 195 | -10/Materials | Discovered new exit (range 16) 315 | -10/Materials | Build established: Mutant 709 | -10/Materials | Discovered new exit (range 10) 999 | -10/Materials | Discovered new exit (range 7) 1173 | -10/Materials | Discovered new exit (range 9) 1193 | -10/Materials | Entered Mines 1196 | -10/Mines | Received a Mining Laser from a helpful Derelict 1254 | -10/Mines | Discovered new exit (range 5) 1362 | -10/Mines | Learned Materials security intel 1391 | -10/Mines | Discovered new exit (range 11) 1451 | -10/Mines | A weapon hastily lodged in a ceiling crevice suddenly fell to the ground 1552 | -10/Mines | Found a damaged Exp. Sensor Array with a note attached 1556 | -10/Mines | Found Prototype Device 1727 | -10/Mines | Found a hidden stash of uninstalled traps 2203 | -10/Mines | Discovered new exit (range 3) 2213 | -10/Mines | Entered Subcaves 2525 | -10/Subcaves | Lost 3 parts (1n2w) 2577 | -10/Subcaves | Core integrity fell below 50% 2730 | -10/Subcaves | Learned location of Storage (-8) 3023 | -10/Subcaves | Lost 4 parts (2p2w) 3108 | -10/Subcaves | Learned location of Mines (-8) 3128 | -10/Subcaves | Shifting Twisted Machinery released Mak. Hammer 3133 | -10/Subcaves | Shifting Twisted Machinery released Sub. Machine Gun 3345 | -10/Subcaves | Shifting Twisted Machinery released Mak. Laser 3345 | -10/Subcaves | Shifting Twisted Machinery released Spk. Treads 3898 | -10/Subcaves | Core integrity fell below 20% 4001 | -10/Subcaves | Disturbed a concealed Subdweller 4018 | -10/Subcaves | Destroyed by 3Y-E4Z(R) with Subdweller Laser Last Messages --------------- 03760_ Destroyed Flight Unit. 03763_ S-10 Pest destroyed. 03763_ Switching to secondary target: S-10 Pest. 03766_ S-10 Pest destroyed. 03768_ Lgt. Assault Rifle fries itself beyond repair. 03770_ Flight Unit fries itself beyond repair. 03771_ S-10 Pest destroyed. 03777_ Lgt. Ion Engine fries itself beyond repair. 03786_ Lgt. Assault Rifle fries itself beyond repair. 03898_ Y-45 Defender destroyed. 03906_ Hvy. Assault Rifle fries itself beyond repair. 03906_ Lgt. Treads fries itself beyond repair. 03913_ Heat Sink fries itself beyond repair. 03918_ Acquired 50 matter. 04001_ 3Y-E4Z(R) angrily emerges from the Twisted Machinery. 04002_ Overload: Heat surge (+153). 04004_ 3Y-E4Z(R) affixes Scrap Shield Fragment to Scrap Shield. 04005_ Spk. Treads destroyed. 04011_ 3Y-E4Z(R) affixes Scrap Shield Fragment to Scrap Shield. 04014_ Imp. Heat Sink destroyed. Map ----- +----------------------------------------------------+ | ??????????????????????????????????##### | | ??????????????????????????????????##### ## | | ?????????????????????????????????????### %%###### | | ?????????????????????????????????????#### ###### | | ????????????????????????????????????##" % ??"## | | ????????????????????????????????????## ??? # | | ????????????????????????????????????## ???? # | | ????????????????????????????????????##" ?????"# | | ????????????????????????????????????##" ??????"# | | ????????????????????????????????????##"???????"## | | ??????????????????????????????????????????????#### | | ??????????????????????????????????????????????#### | | ?????????????????????????????????????????????##### | | ?????????????????????????????????????????????### | | ?????????????????????????????????????????????## | | ?????????????????????????????????????????????## | | ???????????????????????######??????????????#### "" | | ??????#######??????????######?????????????##### " | | ??????#######??????????#$#$##????????????#### """ | | ######## ####???????? ?????????????#### ## | | ######## ####????????## <###?????????#### ### | | ## # ## ##??????###$R####????######## ### | | ###?????###; # ##????####### ### | | ???? ###??##### < < #####?## ### ### | | ????? # ##??##### ######## # | | ?????## ###### @ ##### # | | ?????### ###### #### # | | ????#### ### #### # | | ????### ## # ####### # | | ?##### ### ## ########## # | | ###### ##### ## ######## ## | | ### ###### ######### ## ## ### | | ## ####### ############ ### # ### | | ## ####### ########## ##### ## | | ## ## ######## ##### ### #### ### | | ######### #### #### #### ### | | ######### ### #### ### ## | | ######## ## #### ## | | ####### ### ####### | | # ##### ### ## ######## | | ### ## ######## ### # # | | ### ######## # | | ###???## # | | ## ####???## # ##### # | | ############# ############# #### | | ################ ########### ##### | | ## ## #### # ## ###### | | ### ### # | | # # # # ## | | ##### | +----------------------------------------------------+ Best States ------------- Heat Dissipation 39 Energy Generation 15 Energy Capacity 250 Matter Stores 300 Matter Capacity 300 Sight Range 16 Terrain Scan Density 10 Utility Shielding 33 Evasion (%) 40 Recoil Reduction 2 Item Schematics ----------------- None Robot Schematics ------------------ None Fabricated ------------ Nothing Alien Tech Used ----------------- None Achievements -------------- None Challenges ------------ None Game ------ Seed TerrabombScanImmobilizer Manual? 0 Play Time 00:21:03 Cumulative 188.1 hours Start 2024.04.24 @ 15:04:57 End 2024.04.24 @ 15:25:35 Sessions 1 Manual Loads 0 Difficulty Rogue Special Mode None Game No. 78 Rogue 76 Adventurer 2 Explorer 0 Win Type - Total 5 Types 4/0/0/1/0/0/0/0/0 Lore% 64 Gallery% 76 Achievement% 63 Wizard Run 0 Options --------- Layout 0 ASCII 0 Keyboard 0 Movement Numpad Keybinds 0 Fullscreen 2 Font 24/Smallcaps Map View 76x50 Zoom Use 0% Tactical HUD 1 Map Filters NONE Filters NONE Steam 1 RUN: 97fe03b6-8970-4cbb-b0cf-31feaa0454c5